[Event "Late-Titled-Tuesday-Blitz-February-20-2024"]
[Site "Chess.com"]
[Date "2024.02.20"]
[Round "5"]
[White "tusplingher"]
[Black "Charodej1"]
[Result "1-0"]
[WhiteElo "2461"]
[BlackElo "2226"]
[TimeControl "180+1"]
[EndTime "14:55:31 PST"]
[Termination "tusplingher won by resignation"]

1. e4 {[%clk 0:03:00.9]} 1... c6 {[%clk 0:02:59.7]} 2. Nf3 {[%clk 0:03:00.5]}
2... d5 {[%clk 0:03:00.4]} 3. d3 {[%clk 0:02:57.3]} 3... dxe4 {[%clk 0:03:00.3]}
4. dxe4 {[%clk 0:02:57.4]} 4... Qxd1+ {[%clk 0:03:01]} 5. Kxd1 {[%clk 0:02:58]}
5... Bg4 {[%clk 0:02:59.4]} 6. Nd2 {[%clk 0:02:56.8]} 6... Nd7 {[%clk
0:02:59.2]} 7. Be2 {[%clk 0:02:57.2]} 7... Ngf6 {[%clk 0:02:56.8]} 8. Ne1 {[%clk
0:02:57.3]} 8... Bxe2+ {[%clk 0:02:56.6]} 9. Kxe2 {[%clk 0:02:58.2]} 9... O-O-O
{[%clk 0:02:50.7]} 10. f3 {[%clk 0:02:57.4]} 10... g5 {[%clk 0:02:50.7]} 11. Nd3
{[%clk 0:02:56.8]} 11... Rg8 {[%clk 0:02:48.8]} 12. Nc4 {[%clk 0:02:54.9]} 12...
g4 {[%clk 0:02:48.4]} 13. a4 {[%clk 0:02:49.4]} 13... gxf3+ {[%clk 0:02:46.7]}
14. gxf3 {[%clk 0:02:49.4]} 14... Rg2+ {[%clk 0:02:40]} 15. Nf2 {[%clk
0:02:48.8]} 15... e6 {[%clk 0:02:26.7]} 16. Be3 {[%clk 0:02:46.1]} 16... b6
{[%clk 0:01:45.2]} 17. Rag1 {[%clk 0:02:43.8]} 17... Rxg1 {[%clk 0:01:41]} 18.
Rxg1 {[%clk 0:02:44.7]} 18... b5 {[%clk 0:01:17]} 19. axb5 {[%clk 0:02:39.1]}
19... cxb5 {[%clk 0:01:17.9]} 20. Na5 {[%clk 0:02:39.7]} 20... a6 {[%clk
0:01:08.8]} 21. c4 {[%clk 0:02:36.1]} 21... Ne5 {[%clk 0:00:53.6]} 22. cxb5
{[%clk 0:02:33.9]} 22... axb5 {[%clk 0:00:54.5]} 23. Rc1+ {[%clk 0:02:32.5]}
23... Kd7 {[%clk 0:00:54.2]} 24. Bg5 {[%clk 0:02:16.1]} 24... Be7 {[%clk
0:00:49]} 25. f4 {[%clk 0:02:12.3]} 25... Ng6 {[%clk 0:00:31.9]} 26. Kf3 {[%clk
0:01:52.2]} 26... Ra8 {[%clk 0:00:30]} 27. Nc6 {[%clk 0:01:49.3]} 27... Ng8
{[%clk 0:00:19.9]} 28. Nxe7 {[%clk 0:01:48.3]} 28... N8xe7 {[%clk 0:00:20.5]}
29. Nd3 {[%clk 0:01:46.3]} 29... h6 {[%clk 0:00:18.2]} 30. Bxh6 {[%clk
0:01:44.9]} 30... Rh8 {[%clk 0:00:17.4]} 31. Bg5 {[%clk 0:01:42.6]} 31... Rxh2
{[%clk 0:00:18.1]} 32. Nc5+ {[%clk 0:01:42.2]} 32... Ke8 {[%clk 0:00:15.9]} 33.
Nd3 {[%clk 0:01:39.9]} 33... Rh3+ {[%clk 0:00:15.3]} 34. Ke2 {[%clk 0:01:39.1]}
34... Rh2+ {[%clk 0:00:15.7]} 35. Ke3 {[%clk 0:01:39.4]} 35... Kd7 {[%clk
0:00:14.5]} 36. Rd1 {[%clk 0:01:38]} 36... Kc6 {[%clk 0:00:13.2]} 37. Bf6 {[%clk
0:01:36.8]} 37... Rh3+ {[%clk 0:00:12.6]} 38. Kd4 {[%clk 0:01:36.2]} 38... Kc7
{[%clk 0:00:09]} 39. Rc1+ {[%clk 0:01:35.6]} 39... Nc6+ {[%clk 0:00:08.6]} 40.
Rxc6+ {[%clk 0:01:11.2]} 40... Kxc6 {[%clk 0:00:08.7]} 41. f5 {[%clk 0:01:12.1]}
41... exf5 {[%clk 0:00:07.6]} 42. exf5 {[%clk 0:01:12.6]} 42... Nh4 {[%clk
0:00:07.2]} 43. Ne5+ {[%clk 0:01:10.4]} 43... Kb7 {[%clk 0:00:04]} 44. Ke4
{[%clk 0:01:09.3]} 44... Rh1 {[%clk 0:00:02.4]} 45. Nxf7 {[%clk 0:01:08]} 45...
Nxf5 {[%clk 0:00:03.1]} 46. Kxf5 {[%clk 0:01:07.5]} 46... Rf1+ {[%clk
0:00:03.9]} 47. Ke6 {[%clk 0:01:07.7]} 47... Re1+ {[%clk 0:00:04.3]} 48. Kd5
{[%clk 0:01:06.9]} 48... Ka6 {[%clk 0:00:03.8]} 49. Nd6 {[%clk 0:01:05.5]} 49...
Rd1+ {[%clk 0:00:04.5]} 50. Kc5 {[%clk 0:01:05]} 50... Rc1+ {[%clk 0:00:04.9]}
51. Bc3 {[%clk 0:01:05.3]} 51... Rc2 {[%clk 0:00:04.9]} 52. Nxb5 {[%clk
0:01:04.6]} 1-0

[Event "Late-Titled-Tuesday-Blitz-February-20-2024"]
[Site "Chess.com"]
[Date "2024.02.20"]
[Round "5"]
[White "Dinamo3"]
[Black "AlexOstrovskiy"]
[Result "0-1"]
[WhiteElo "2518"]
[BlackElo "2738"]
[TimeControl "180+1"]
[EndTime "14:55:32 PST"]
[Termination "AlexOstrovskiy won on time"]

1. c4 {[%clk 0:03:00.9]} 1... b6 {[%clk 0:02:59.2]} 2. Nc3 {[%clk 0:02:57.6]}
2... Bb7 {[%clk 0:03:00.1]} 3. Nf3 {[%clk 0:02:58.2]} 3... e6 {[%clk 0:02:57.2]}
4. e3 {[%clk 0:02:51.7]} 4... f5 {[%clk 0:02:56.7]} 5. b3 {[%clk 0:02:51.8]}
5... Nf6 {[%clk 0:02:56.3]} 6. Bb2 {[%clk 0:02:52.3]} 6... g6 {[%clk 0:02:55.6]}
7. Be2 {[%clk 0:02:51.9]} 7... Bg7 {[%clk 0:02:55.8]} 8. O-O {[%clk 0:02:52.3]}
8... O-O {[%clk 0:02:55.9]} 9. d3 {[%clk 0:02:52.8]} 9... d6 {[%clk 0:02:56.2]}
10. Ne1 {[%clk 0:02:46.1]} 10... e5 {[%clk 0:02:49.3]} 11. Bf3 {[%clk
0:02:41.7]} 11... e4 {[%clk 0:02:45.3]} 12. Be2 {[%clk 0:02:31.2]} 12... Nbd7
{[%clk 0:02:42.2]} 13. Nc2 {[%clk 0:02:17.5]} 13... exd3 {[%clk 0:02:38.6]} 14.
Bxd3 {[%clk 0:02:15.6]} 14... Nc5 {[%clk 0:02:34]} 15. Be2 {[%clk 0:02:15.8]}
15... Qe7 {[%clk 0:02:13.4]} 16. Nd4 {[%clk 0:01:50.6]} 16... Rae8 {[%clk
0:02:06.3]} 17. Bf3 {[%clk 0:01:50.3]} 17... Nce4 {[%clk 0:01:58.1]} 18. Rc1
{[%clk 0:01:34.5]} 18... a6 {[%clk 0:01:57.6]} 19. h3 {[%clk 0:01:21.8]} 19...
c5 {[%clk 0:01:57.2]} 20. Nc2 {[%clk 0:01:15]} 20... g5 {[%clk 0:01:27.9]} 21.
Nd5 {[%clk 0:01:06.7]} 21... Nxd5 {[%clk 0:01:24.5]} 22. Bxg7 {[%clk 0:01:06.8]}
22... Qxg7 {[%clk 0:01:06.2]} 23. cxd5 {[%clk 0:01:06.9]} 23... Re5 {[%clk
0:00:59.1]} 24. Na3 {[%clk 0:00:46.7]} 24... b5 {[%clk 0:00:56.8]} 25. Nb1
{[%clk 0:00:39.3]} 25... Rxd5 {[%clk 0:00:52.7]} 26. Qc2 {[%clk 0:00:39.9]}
26... Re5 {[%clk 0:00:45.3]} 27. Rfd1 {[%clk 0:00:40.1]} 27... g4 {[%clk
0:00:43.4]} 28. hxg4 {[%clk 0:00:37.5]} 28... fxg4 {[%clk 0:00:43.6]} 29. Bxe4
{[%clk 0:00:36.6]} 29... Bxe4 {[%clk 0:00:44.5]} 30. Qd2 {[%clk 0:00:33.6]}
30... g3 {[%clk 0:00:39.4]} 31. fxg3 {[%clk 0:00:08.3]} 31... Qxg3 {[%clk
0:00:39]} 32. Rf1 {[%clk 0:00:08.7]} 32... Rxf1+ {[%clk 0:00:24]} 33. Rxf1
{[%clk 0:00:08.5]} 33... Rh5 {[%clk 0:00:24.9]} 34. Rf4 {[%clk 0:00:01.7]} 34...
Rd5 {[%clk 0:00:13.8]} 0-1

[Event "Late-Titled-Tuesday-Blitz-February-20-2024"]
[Site "Chess.com"]
[Date "2024.02.20"]
[Round "5"]
[White "Njal28"]
[Black "NikoTheodorou"]
[Result "0-1"]
[WhiteElo "2992"]
[BlackElo "3067"]
[TimeControl "180+1"]
[EndTime "14:55:46 PST"]
[Termination "NikoTheodorou won by checkmate"]

1. d4 {[%clk 0:02:53.2]} 1... Nf6 {[%clk 0:03:00]} 2. Nf3 {[%clk 0:02:51.5]}
2... g6 {[%clk 0:03:00.3]} 3. Nbd2 {[%clk 0:02:51.8]} 3... Bg7 {[%clk
0:02:59.1]} 4. e4 {[%clk 0:02:52]} 4... d6 {[%clk 0:02:59.9]} 5. Bb5+ {[%clk
0:02:51.3]} 5... c6 {[%clk 0:03:00.1]} 6. Bd3 {[%clk 0:02:51.6]} 6... O-O {[%clk
0:03:00.9]} 7. O-O {[%clk 0:02:51.8]} 7... c5 {[%clk 0:03:01.7]} 8. c3 {[%clk
0:02:50.4]} 8... cxd4 {[%clk 0:03:02.2]} 9. cxd4 {[%clk 0:02:51.3]} 9... e5
{[%clk 0:03:03]} 10. d5 {[%clk 0:02:47.3]} 10... a5 {[%clk 0:03:03.3]} 11. Re1
{[%clk 0:02:45.3]} 11... Nbd7 {[%clk 0:02:57.2]} 12. a4 {[%clk 0:02:33.1]} 12...
Nc5 {[%clk 0:02:56.6]} 13. Bc2 {[%clk 0:02:33.4]} 13... b6 {[%clk 0:02:56.6]}
14. Nb1 {[%clk 0:02:26.1]} 14... Ne8 {[%clk 0:02:20.2]} 15. Nc3 {[%clk 0:02:24]}
15... Nc7 {[%clk 0:02:19.1]} 16. Bg5 {[%clk 0:02:21.2]} 16... f6 {[%clk
0:02:14.8]} 17. Be3 {[%clk 0:02:15.4]} 17... N7a6 {[%clk 0:02:15.7]} 18. Nd2
{[%clk 0:02:10.8]} 18... Nb4 {[%clk 0:02:12.5]} 19. Ra3 {[%clk 0:02:03.7]} 19...
f5 {[%clk 0:02:12.2]} 20. f3 {[%clk 0:02:03.6]} 20... f4 {[%clk 0:02:11.1]} 21.
Bf2 {[%clk 0:02:03.3]} 21... g5 {[%clk 0:02:11.5]} 22. Nb5 {[%clk 0:02:02.4]}
22... h5 {[%clk 0:02:08.1]} 23. Nc4 {[%clk 0:02:02.5]} 23... Rf6 {[%clk
0:02:08.9]} 24. Bb1 {[%clk 0:01:50.6]} 24... Rg6 {[%clk 0:02:02.6]} 25. g4
{[%clk 0:01:43.1]} 25... Rh6 {[%clk 0:01:30.4]} 26. h3 {[%clk 0:01:41.7]} 26...
Bf8 {[%clk 0:01:30.7]} 27. Kg2 {[%clk 0:01:33.4]} 27... Rb8 {[%clk 0:01:30.8]}
28. Rh1 {[%clk 0:01:33.3]} 28... Rb7 {[%clk 0:01:31.4]} 29. Kf1 {[%clk
0:01:17.2]} 29... Rbh7 {[%clk 0:01:30]} 30. Rg1 {[%clk 0:01:08.5]} 30... hxg4
{[%clk 0:01:28.5]} 31. hxg4 {[%clk 0:01:09.1]} 31... Rh2 {[%clk 0:01:27.1]} 32.
Rg2 {[%clk 0:01:06.1]} 32... Rh1+ {[%clk 0:01:26.5]} 33. Rg1 {[%clk 0:01:06.3]}
33... R1h3 {[%clk 0:01:26.9]} 34. Ke1 {[%clk 0:00:56.6]} 34... Ba6 {[%clk
0:01:25.5]} 35. Qe2 {[%clk 0:00:55.9]} 35... Nxa4 {[%clk 0:01:14.2]} 36. Rxa4
{[%clk 0:00:22.4]} 36... Bxb5 {[%clk 0:01:12.3]} 37. Ra3 {[%clk 0:00:23]} 37...
Rh1 {[%clk 0:00:54.4]} 38. Rc3 {[%clk 0:00:21.4]} 38... Na6 {[%clk 0:00:44.4]}
39. Qf1 {[%clk 0:00:21.6]} 39... Rxg1 {[%clk 0:00:43.6]} 40. Qxg1 {[%clk
0:00:22.5]} 40... Nc5 {[%clk 0:00:43.9]} 41. Bxc5 {[%clk 0:00:21.4]} 41... bxc5
{[%clk 0:00:43.1]} 42. Bd3 {[%clk 0:00:21]} 42... Qb8 {[%clk 0:00:39.6]} 43. Rc2
{[%clk 0:00:21.1]} 43... Ba6 {[%clk 0:00:34]} 44. Nxe5 {[%clk 0:00:09.7]} 44...
Qb3 {[%clk 0:00:27.4]} 45. Rd2 {[%clk 0:00:05.6]} 45... c4 {[%clk 0:00:25]} 46.
Bc2 {[%clk 0:00:01.5]} 46... Qe3+ {[%clk 0:00:24.8]} 47. Qxe3 {[%clk 0:00:02.3]}
47... fxe3 {[%clk 0:00:25.7]} 48. Re2 {[%clk 0:00:02.2]} 48... Rh1# {[%clk
0:00:25.2]} 0-1

[Event "Late-Titled-Tuesday-Blitz-February-20-2024"]
[Site "Chess.com"]
[Date "2024.02.20"]
[Round "5"]
[White "scandalgod"]
[Black "Felix-Rose"]
[Result "1-0"]
[WhiteElo "2483"]
[BlackElo "2264"]
[TimeControl "180+1"]
[EndTime "14:55:46 PST"]
[Termination "scandalgod won on time"]

1. d4 {[%clk 0:03:00.9]} 1... d5 {[%clk 0:02:59.5]} 2. c4 {[%clk 0:03:00.9]}
2... e6 {[%clk 0:02:59.9]} 3. Nf3 {[%clk 0:02:59.8]} 3... Nf6 {[%clk 0:03:00.1]}
4. g3 {[%clk 0:02:59.8]} 4... dxc4 {[%clk 0:03:00.2]} 5. Bg2 {[%clk 0:03:00.7]}
5... a6 {[%clk 0:03:00.5]} 6. O-O {[%clk 0:03:00.1]} 6... Nc6 {[%clk 0:03:00.9]}
7. Nc3 {[%clk 0:03:00.3]} 7... Rb8 {[%clk 0:03:01.2]} 8. e4 {[%clk 0:03:00.1]}
8... Bb4 {[%clk 0:02:52.8]} 9. Qe2 {[%clk 0:02:45.4]} 9... O-O {[%clk
0:02:48.5]} 10. Rd1 {[%clk 0:02:43.7]} 10... b5 {[%clk 0:02:45.3]} 11. Bg5
{[%clk 0:02:27.3]} 11... h6 {[%clk 0:02:41.3]} 12. Ne5 {[%clk 0:02:16.8]} 12...
Nxd4 {[%clk 0:02:23]} 13. Rxd4 {[%clk 0:02:14.3]} 13... Qxd4 {[%clk 0:02:11.6]}
14. Bxf6 {[%clk 0:02:12.9]} 14... gxf6 {[%clk 0:01:46.9]} 15. Nc6 {[%clk
0:02:02.5]} 15... Bxc3 {[%clk 0:01:04.9]} 16. Nxd4 {[%clk 0:01:38.7]} 16... Bxd4
{[%clk 0:01:05.8]} 17. Rd1 {[%clk 0:01:36.2]} 17... c5 {[%clk 0:01:01.4]} 18. h3
{[%clk 0:01:31.6]} 18... Kh7 {[%clk 0:00:51.6]} 19. Kh2 {[%clk 0:01:31.5]} 19...
Rg8 {[%clk 0:00:43.1]} 20. f4 {[%clk 0:01:29.3]} 20... Bb7 {[%clk 0:00:35.7]}
21. Qh5 {[%clk 0:01:27.8]} 21... Rg6 {[%clk 0:00:25.4]} 22. f5 {[%clk
0:01:11.5]} 22... Rg7 {[%clk 0:00:22.5]} 23. g4 {[%clk 0:00:51]} 23... e5 {[%clk
0:00:15.4]} 24. h4 {[%clk 0:00:30.5]} 24... Rbg8 {[%clk 0:00:10.3]} 25. Bf3
{[%clk 0:00:30]} 25... b4 {[%clk 0:00:06.4]} 26. Rc1 {[%clk 0:00:23.6]} 26...
Bxb2 {[%clk 0:00:03.5]} 27. Rxc4 {[%clk 0:00:23.2]} 27... Bd4 {[%clk 0:00:04.3]}
28. Rc2 {[%clk 0:00:19]} 28... a5 {[%clk 0:00:04.5]} 29. Be2 {[%clk 0:00:19]}
29... Bxe4 {[%clk 0:00:04.3]} 30. Rc1 {[%clk 0:00:16.9]} 30... Bd5 {[%clk
0:00:01.5]} 31. Kh3 {[%clk 0:00:15]} 31... Bxa2 {[%clk 0:00:01.2]} 32. Bd3
{[%clk 0:00:13]} 32... b3 {[%clk 0:00:01.5]} 33. g5 {[%clk 0:00:13.3]} 33...
fxg5 {[%clk 0:00:01.3]} 34. f6+ {[%clk 0:00:13.2]} 1-0

[Event "Late-Titled-Tuesday-Blitz-February-20-2024"]
[Site "Chess.com"]
[Date "2024.02.20"]
[Round "5"]
[White "PacingRope"]
[Black "BogdanDeac"]
[Result "0-1"]
[WhiteElo "2905"]
[BlackElo "3048"]
[TimeControl "180+1"]
[EndTime "14:55:47 PST"]
[Termination "BogdanDeac won by resignation"]

1. e4 {[%clk 0:03:00.9]} 1... c6 {[%clk 0:02:59.8]} 2. d4 {[%clk 0:02:59.6]}
2... d5 {[%clk 0:03:00.7]} 3. f3 {[%clk 0:03:00]} 3... Qb6 {[%clk 0:02:56.9]} 4.
Nc3 {[%clk 0:02:58.1]} 4... dxe4 {[%clk 0:02:57.3]} 5. fxe4 {[%clk 0:02:55.6]}
5... e5 {[%clk 0:02:57.6]} 6. Nf3 {[%clk 0:02:43.6]} 6... exd4 {[%clk
0:02:32.5]} 7. Qxd4 {[%clk 0:02:44.5]} 7... Qxd4 {[%clk 0:02:28.4]} 8. Nxd4
{[%clk 0:02:45.4]} 8... Nf6 {[%clk 0:02:28.6]} 9. e5 {[%clk 0:02:42.8]} 9... Ng4
{[%clk 0:02:01.3]} 10. Bf4 {[%clk 0:02:41.1]} 10... Bc5 {[%clk 0:02:01.2]} 11.
Nce2 {[%clk 0:02:23.5]} 11... Nd7 {[%clk 0:01:12.7]} 12. e6 {[%clk 0:02:18.3]}
12... Nb6 {[%clk 0:01:12.5]} 13. exf7+ {[%clk 0:02:06.8]} 13... Kxf7 {[%clk
0:01:13.4]} 14. h3 {[%clk 0:02:07.5]} 14... Re8 {[%clk 0:00:37.4]} 15. hxg4
{[%clk 0:01:40.1]} 15... Bxd4 {[%clk 0:00:36]} 16. O-O-O {[%clk 0:01:40.5]}
16... Bc5 {[%clk 0:00:22.3]} 17. Nd4 {[%clk 0:01:13.9]} 17... Bxg4 {[%clk
0:00:12]} 18. Nf3 {[%clk 0:01:14]} 18... Bxf3 {[%clk 0:00:04.5]} 19. gxf3 {[%clk
0:01:14.9]} 19... h6 {[%clk 0:00:05]} 20. Bd3 {[%clk 0:01:10.6]} 20... Rad8
{[%clk 0:00:04.3]} 21. Rh2 {[%clk 0:01:03.8]} 21... Nd5 {[%clk 0:00:03.9]} 22.
Bd2 {[%clk 0:01:01.7]} 22... Be3 {[%clk 0:00:03.7]} 23. Rg2 {[%clk 0:00:58.2]}
23... Bxd2+ {[%clk 0:00:03.1]} 24. Rgxd2 {[%clk 0:00:56.6]} 24... Rd6 {[%clk
0:00:03.4]} 25. Be4 {[%clk 0:00:53.4]} 25... Rf6 {[%clk 0:00:02.7]} 26. Rd3
{[%clk 0:00:45.6]} 26... Nf4 {[%clk 0:00:02.6]} 27. Ra3 {[%clk 0:00:42.6]} 27...
a6 {[%clk 0:00:02.4]} 28. Rb3 {[%clk 0:00:40.6]} 28... Re7 {[%clk 0:00:02.6]}
29. a4 {[%clk 0:00:41]} 29... b5 {[%clk 0:00:02.1]} 30. axb5 {[%clk 0:00:37]}
30... axb5 {[%clk 0:00:03]} 31. Rc3 {[%clk 0:00:36.9]} 31... Ne2+ {[%clk
0:00:03]} 32. Kb1 {[%clk 0:00:36]} 32... Nxc3+ {[%clk 0:00:03.9]} 33. bxc3
{[%clk 0:00:36.9]} 33... Rfe6 {[%clk 0:00:03.8]} 34. Rf1 {[%clk 0:00:28]} 34...
g5 {[%clk 0:00:03.7]} 35. Kb2 {[%clk 0:00:28]} 35... Rf6 {[%clk 0:00:04]} 36.
Rg1 {[%clk 0:00:26.4]} 36... Rf4 {[%clk 0:00:04.1]} 37. Bxc6 {[%clk 0:00:26.2]}
37... Re5 {[%clk 0:00:04.5]} 38. Kb3 {[%clk 0:00:24.8]} 38... Kf6 {[%clk
0:00:04.4]} 39. Rh1 {[%clk 0:00:23.3]} 39... Kg6 {[%clk 0:00:04]} 40. Ra1 {[%clk
0:00:20.7]} 40... h5 {[%clk 0:00:03.9]} 41. Ra6 {[%clk 0:00:21]} 41... Rf6
{[%clk 0:00:02.8]} 42. Be8+ {[%clk 0:00:18.8]} 42... Rxe8 {[%clk 0:00:02.5]} 0-1

[Event "Late-Titled-Tuesday-Blitz-February-20-2024"]
[Site "Chess.com"]
[Date "2024.02.20"]
[Round "5"]
[White "Goryachkina"]
[Black "bocah_sakit"]
[Result "1-0"]
[WhiteElo "2694"]
[BlackElo "2502"]
[TimeControl "180+1"]
[EndTime "14:55:47 PST"]
[Termination "Goryachkina won by resignation"]

1. e4 {[%clk 0:02:59.3]} 1... e5 {[%clk 0:02:55.7]} 2. Bc4 {[%clk 0:02:58.7]}
2... Nf6 {[%clk 0:02:54.7]} 3. d3 {[%clk 0:02:58.6]} 3... c6 {[%clk 0:02:54.2]}
4. Nf3 {[%clk 0:02:58.4]} 4... d5 {[%clk 0:02:53.7]} 5. Bb3 {[%clk 0:02:58.7]}
5... Bd6 {[%clk 0:02:53.2]} 6. O-O {[%clk 0:02:56.4]} 6... a5 {[%clk 0:02:52.7]}
7. a4 {[%clk 0:02:55]} 7... O-O {[%clk 0:02:52.4]} 8. exd5 {[%clk 0:02:41.7]}
8... cxd5 {[%clk 0:02:51.5]} 9. Nc3 {[%clk 0:02:41]} 9... e4 {[%clk 0:02:40.2]}
10. dxe4 {[%clk 0:02:34.2]} 10... dxe4 {[%clk 0:02:41.1]} 11. Ng5 {[%clk
0:02:33.5]} 11... Bf5 {[%clk 0:02:35.7]} 12. Nb5 {[%clk 0:02:21.4]} 12... Ra6
{[%clk 0:02:28.5]} 13. Nxf7 {[%clk 0:02:05.8]} 13... Rxf7 {[%clk 0:02:27.5]} 14.
Bf4 {[%clk 0:02:03.5]} 14... Ne8 {[%clk 0:02:16.2]} 15. Qd5 {[%clk 0:01:49.3]}
15... Bg6 {[%clk 0:02:11.7]} 16. Rad1 {[%clk 0:01:42.3]} 16... Kh8 {[%clk
0:01:47.6]} 17. Bxd6 {[%clk 0:01:26.4]} 17... Nxd6 {[%clk 0:01:45.5]} 18. Nxd6
{[%clk 0:01:25]} 18... Rd7 {[%clk 0:01:45.6]} 19. Nxb7 {[%clk 0:01:13.4]} 19...
Qc8 {[%clk 0:01:26.7]} 20. Qc4 {[%clk 0:00:51.9]} 20... Rc6 {[%clk 0:01:22.9]}
21. Qb5 {[%clk 0:00:47.2]} 21... e3 {[%clk 0:01:00.1]} 22. fxe3 {[%clk
0:00:41.9]} 22... Be4 {[%clk 0:00:53.9]} 23. Qe5 {[%clk 0:00:11.8]} 23... Bxg2
{[%clk 0:00:16.9]} 24. Nd6 {[%clk 0:00:11.8]} 24... Rcxd6 {[%clk 0:00:13.4]} 25.
Rxd6 {[%clk 0:00:11.6]} 25... Bxf1 {[%clk 0:00:13.8]} 26. Rb6 {[%clk 0:00:05]}
26... Rc7 {[%clk 0:00:05.4]} 27. Kxf1 {[%clk 0:00:04.5]} 27... h6 {[%clk
0:00:05.2]} 28. Re6 {[%clk 0:00:04.1]} 28... Kh7 {[%clk 0:00:02.2]} 29. Qe4+
{[%clk 0:00:04.4]} 29... Kh8 {[%clk 0:00:02.6]} 30. Re8+ {[%clk 0:00:04.5]}
30... Qxe8 {[%clk 0:00:02.9]} 31. Qxe8+ {[%clk 0:00:05.3]} 31... Kh7 {[%clk
0:00:03.8]} 32. Bg8+ {[%clk 0:00:05.4]} 1-0

[Event "Late-Titled-Tuesday-Blitz-February-20-2024"]
[Site "Chess.com"]
[Date "2024.02.20"]
[Round "5"]
[White "WindWhistler11"]
[Black "dretch"]
[Result "0-1"]
[WhiteElo "2490"]
[BlackElo "2875"]
[TimeControl "180+1"]
[EndTime "14:55:47 PST"]
[Termination "dretch won by resignation"]

1. c4 {[%clk 0:03:00.9]} 1... c6 {[%clk 0:02:57.3]} 2. g3 {[%clk 0:03:00.4]}
2... d5 {[%clk 0:02:57.5]} 3. Bg2 {[%clk 0:03:01.1]} 3... dxc4 {[%clk
0:02:56.1]} 4. Na3 {[%clk 0:02:57.5]} 4... g6 {[%clk 0:02:49.6]} 5. Nxc4 {[%clk
0:02:55.4]} 5... Bg7 {[%clk 0:02:50.1]} 6. Nf3 {[%clk 0:02:55.6]} 6... Nf6
{[%clk 0:02:48.4]} 7. O-O {[%clk 0:02:55.5]} 7... O-O {[%clk 0:02:48.5]} 8. d3
{[%clk 0:02:55.7]} 8... Nbd7 {[%clk 0:02:45.8]} 9. Bd2 {[%clk 0:02:55.3]} 9...
Nd5 {[%clk 0:02:32.9]} 10. Rc1 {[%clk 0:02:50.2]} 10... b6 {[%clk 0:02:05.1]}
11. e4 {[%clk 0:02:37.3]} 11... Nc7 {[%clk 0:02:02.7]} 12. d4 {[%clk 0:02:29]}
12... Bb7 {[%clk 0:01:57.9]} 13. Re1 {[%clk 0:02:22.8]} 13... Rc8 {[%clk
0:01:53.9]} 14. h4 {[%clk 0:02:21.3]} 14... Ne6 {[%clk 0:01:49.4]} 15. Bc3
{[%clk 0:02:12.4]} 15... Ba6 {[%clk 0:01:43.2]} 16. Ne3 {[%clk 0:02:04.6]} 16...
Nf6 {[%clk 0:01:39.9]} 17. Ne5 {[%clk 0:01:55.1]} 17... Nd7 {[%clk 0:01:20.1]}
18. Nf3 {[%clk 0:01:45.5]} 18... Re8 {[%clk 0:01:11.6]} 19. Bh3 {[%clk
0:01:38.7]} 19... Nc7 {[%clk 0:01:08.1]} 20. e5 {[%clk 0:01:35.2]} 20... e6
{[%clk 0:00:59.9]} 21. Ng5 {[%clk 0:01:34.7]} 21... Nb5 {[%clk 0:00:56.2]} 22.
Ne4 {[%clk 0:01:33.1]} 22... c5 {[%clk 0:00:48.5]} 23. dxc5 {[%clk 0:01:15.5]}
23... Nxc5 {[%clk 0:00:47]} 24. Nd6 {[%clk 0:00:51]} 24... Nxd6 {[%clk
0:00:45.3]} 25. exd6 {[%clk 0:00:51.9]} 25... Nd3 {[%clk 0:00:41.6]} 26. Bf1
{[%clk 0:00:52.5]} 26... Bxc3 {[%clk 0:00:32.9]} 27. bxc3 {[%clk 0:00:48]} 27...
Qxd6 {[%clk 0:00:31.5]} 28. c4 {[%clk 0:00:47.4]} 28... Red8 {[%clk 0:00:29.8]}
29. Bxd3 {[%clk 0:00:41.7]} 29... Qxd3 {[%clk 0:00:29.4]} 30. Qa4 {[%clk
0:00:42.5]} 30... Bb7 {[%clk 0:00:27.6]} 31. Qc2 {[%clk 0:00:11.8]} 31... Bf3
{[%clk 0:00:20.1]} 32. Qc3 {[%clk 0:00:05.1]} 32... Qxc3 {[%clk 0:00:19.5]} 33.
Rxc3 {[%clk 0:00:06]} 33... Rd2 {[%clk 0:00:19.7]} 34. Ra3 {[%clk 0:00:05.1]}
34... Rc7 {[%clk 0:00:15.3]} 35. g4 {[%clk 0:00:05.2]} 35... Rd4 {[%clk
0:00:14.3]} 36. g5 {[%clk 0:00:02]} 36... Rxh4 {[%clk 0:00:13.9]} 37. Ng2 {[%clk
0:00:02.1]} 37... Bxg2 {[%clk 0:00:14.4]} 38. Kxg2 {[%clk 0:00:03]} 38... Rg4+
{[%clk 0:00:13.4]} 39. Rg3 {[%clk 0:00:03.2]} 39... Rcxc4 {[%clk 0:00:13.4]} 40.
Rd1 {[%clk 0:00:03.2]} 40... Ra4 {[%clk 0:00:12.9]} 0-1